[Event "22nd Rochefort Festival Masters 2024"]
[Site "Rochefort"]
[Date "2024.02.23"]
[Round "9.3"]
[White "Romanov, Evgeny"]
[Black "Dalaud, Dorian"]
[Result "1-0"]
[ECO "B20"]
[WhiteElo "2578"]
[BlackElo "2329"]
[Annotator "TA"]
[PlyCount "49"]
[EventDate "2024.02.18"]
[EventType "swiss"]
[EventCountry "FRA"]
[SourceTitle "playchess.com"]
[Source "ChessBase"]
[SourceQuality "1"]
[TimeControl "40/5400+30:1800+30"]

{[%evp 9,49,-29,-15,-28,-26,-43,-47,-45,-30,-46,-3,-21,-16,-12,0,-11,23,14,16,0,58,55,65,35,34,25,38,37,111,128,286,289,292,285,381,312,426,460,464,447,606,593]} 1. e4 {[%emt 1:31:00]} c5 {[%emt 0:11:35]} 2. b3 {[%emt 0:00:30]} g6 {[%emt 0:01:00]} 3. Bb2 {[%emt 0:00:00]} Nf6 {[%emt 1:19:25]} 4. e5 {[%emt 0:00:00]} Nd5 {[%emt 0:00:30]} 5. e6 {[%emt 0:00:00]} f6 {[%emt 0:00:00]} 6. exd7+ {[%emt 0:00:00]} Qxd7 {[%emt 0:01:00]} 7. h4 {[%emt 0:02:30]} Nc6 {[%emt 0:00:00]} 8. h5 {[%emt 0:00:30] Black is slightly better.} g5 {[%emt 0:01:00]} 9. Bc4 {[%emt 0:00:30]} Qd6 {[%emt 0:00:30]} 10. Nc3 {[%emt 0:00:30]} Nxc3 {[%emt 0:00:00]} 11. dxc3 {[%emt 0:00:00]} Qe5+ {[%emt 0:01:00]} (11... Qxd1+ {simplifies} 12. Rxd1 Bf5 13. Bd3 Bxd3 14. Rxd3 e6) 12. Qe2 {[%emt 0:00:00]} Bg4 {[%emt 0:00:00]} (12... Qxe2+ {simplifies} 13. Bxe2 Bd7 14. O-O-O O-O-O) 13. f3 {[%emt 0:00:00]} Bd7 {[%emt 0:00:00]} (13... Qxe2+ {simplifies} 14. Nxe2 Bd7 15. Bb5 g4) 14. O-O-O {[%emt 0:02:00]} O-O-O {[%emt 0:01:30]} ({Black should play} 14... Qxe2 $11 15. Bxe2 O-O-O) 15. Qf2 $14 {[%emt 0:00:30]} g4 {[%emt 0:00:30]} 16. Kb1 {[%emt 0:00:30] Active counter play!} Bh6 {[%emt 0:00:00]} 17. Ne2 {[%emt 0:00:00]} gxf3 {[%emt 0:00:00]} 18. gxf3 {[%emt 0:01:00][%cal Bg2f3,Bf3f4][%mdl 32]} Bf5 {[%emt 0:01:30]} (18... Be3 $14 19. Qf1 Bf5) 19. f4 $1 $16 {[%emt 0:00:30]} Bxc2+ $2 {[%emt 0:00:30] Loses the game.} 20. Kxc2 $18 {[%emt 0:00:30][%cal Bb1c2,Bc2c1,Bc1c2][%mdl 32]} Qe4+ {[%emt 0:00:00] [#]} 21. Kc1 $1 {[%emt 0:00:00]} e5 {[%emt 0:01:00][%cal Re5f4]} 22. Qh4 {[%emt 0:00:00]} (22. Qxc5 $2 {loses.} exf4 23. Ba3 (23. Rxd8+ $2 Rxd8 24. Ba1 f3+ $19) 23... f3+ $19) 22... Rhf8 {[%emt 0:00:00][%cal Re5f4] [#]} 23. Qh3+ $1 {[%emt 0:00:00] White is clearly winning.} Kb8 {[%emt 0:00:00]} 24. Bd3 {[%emt 0:00:00]} Bxf4+ {[%emt 0:01:30]} 25. Kc2 {[%emt 0:02:30] Weighted Error Value: White=0.11 (very precise) /Black=0.49.  Mistake:       	---       	Black=3      Inaccurate:     	White=1     	Black=5      OK:         	White=6     	Black=6      Best:        	White=1     	---        Strong:       	White=3     	---} 1-0

[Event "22nd Rochefort Festival Masters 2024"]
[Site "Rochefort"]
[Date "2024.02.23"]
[Round "9.4"]
[White "Roshka, Yevgeniy"]
[Black "Song, Yuxin"]
[Result "1/2-1/2"]
[ECO "E04"]
[WhiteElo "2474"]
[BlackElo "2405"]
[Annotator "TA"]
[PlyCount "47"]
[EventDate "2024.02.18"]
[EventType "swiss"]
[EventCountry "FRA"]
[SourceTitle "playchess.com"]
[Source "ChessBase"]
[SourceQuality "1"]
[TimeControl "40/5400+30:1800+30"]

{[%evp 23,47,15,15,19,10,16,25,0,8,7,5,6,3,-27,-31,-20,0,-43,0,0,0,-44,0,0,0,-39]} 1. d4 {[%emt 0:07:53]} Nf6 {[%emt 0:00:02]} 2. c4 {[%emt 0:00:06]} e6 {[%emt 0:00:06]} 3. g3 {[%emt 0:00:03]} d5 {[%emt 0:00:07]} 4. Nf3 {[%emt 0:00:04]} dxc4 {[%emt 0:00:08]} 5. Bg2 {[%emt 0:00:03]} c5 {[%emt 0:00:11]} 6. O-O {[%emt 0:00:31]} Nc6 {[%emt 0:00:08]} 7. dxc5 {[%emt 0:01:02]} Qxd1 {[%emt 0:00:06]} 8. Rxd1 {[%emt 0:00:03]} Bxc5 {[%emt 0:00:08]} 9. Nbd2 {[%emt 1:25:15]} c3 {[%emt 0:00:06]} 10. bxc3 {[%emt 0:00:00]} O-O {[%emt 0:00:07]} 11. Nb3 {[%emt 0:00:00]} Be7 {[%emt 0:00:14]} 12. c4 {[%emt 0:00:00]} Bd7 {[%emt 0:00:05]} 13. Bb2 {[%emt 0:02:00]} Rfd8 {[%emt 1:35:32]} 14. Nfd4 {[%emt 0:00:00]} Rac8 {[%emt 0:00:30]} 15. Rac1 {[%emt 0:00:00] White has an edge.} b6 {[%emt 0:00:30]} 16. Nb5 {[%emt 0:01:30]} a5 {[%emt 0:00:30]} 17. a4 {[%emt 0:00:00]} Be8 {[%emt 0:00:30]} 18. h3 {[%emt 0:01:00]} Rxd1+ {[%emt 0:00:00]} 19. Rxd1 {[%emt 0:00:00]} Nb4 {[%emt 0:01:00]} 20. Rc1 {[%emt 0:01:00]} Na2 {[%emt 0:00:00]} 21. Ra1 {[%emt 0:00:00] [#] Hoping for c5.} Nb4 {[%emt 0:01:00]} 22. Rc1 {[%emt 0:00:00]} Na2 {[%emt 0:00:00]} 23. Ra1 {[%emt 0:00:00] Threatens to win with c5.} Nb4 {[%emt 0:01:00]} 24. Rc1 {[%emt 0:00:00] A rather calm draw.   Weighted Error Value: White=0.10 (very precise) /Black=0.10 (very precise) .  Inaccurate:     	White=2     	---        OK:         	White=6     	Black=7} 1/2-1/2

[Event "22nd Rochefort Festival Masters 2024"]
[Site "Rochefort"]
[Date "2024.02.23"]
[Round "9.5"]
[White "Larkin, Vladyslav"]
[Black "Colin, Vincent"]
[Result "1-0"]
[ECO "D02"]
[WhiteElo "2484"]
[BlackElo "2311"]
[Annotator "TA"]
[PlyCount "103"]
[EventDate "2024.02.18"]
[EventType "swiss"]
[EventCountry "FRA"]
[SourceTitle "playchess.com"]
[Source "ChessBase"]
[SourceQuality "1"]
[TimeControl "40/5400+30:1800+30"]

{[%evp 28,103,-2,-13,-4,-11,-10,-9,14,10,7,8,14,0,43,47,81,0,50,0,0,0,0,0,0,0,0,0,0,-6,-6,-16,43,39,72,60,56,34,156,102,112,114,107,114,112,109,102,114,119,93,212,222,216,202,212,222,396,377,635,634,656,639,606,496,769,624,614,615,629,619,754,754,1471,1243,5359,5291,1466,1394]} 1. d4 {[%emt 0:10:51]} Nf6 {[%emt 0:00:16]} 2. Bf4 {[%emt 1:20:39]} d5 {[%emt 0:00:23]} 3. e3 {[%emt 0:00:00]} c5 {[%emt 0:00:09]} 4. c3 {[%emt 0:00:00]} Nc6 {[%emt 1:31:42]} 5. Nf3 {[%emt 0:00:00]} Qb6 {[%emt 0:00:00]} 6. Qb3 {[%emt 0:00:00]} c4 {[%emt 0:00:00]} 7. Qc2 {[%emt 0:02:30]} Bf5 {[%emt 0:00:00]} 8. Qc1 {[%emt 0:00:00]} e6 {[%emt 0:00:00]} 9. Nbd2 {[%emt 0:01:00]} Rc8 {[%emt 0:00:00] D02: 1 d4 d5 2 Nf3 sidelines, including 2...Nf6 3 g3 and 2...Nf6 3 Bf4.} 10. Be2 {[%emt 0:00:00]} h6 {[%emt 0:00:00]} 11. Bd1 {[%emt 0:01:00]} Qd8 $146 {[%emt 0:00:00]} ({Predecessor:} 11... Be7 12. Bc2 Bd3 13. Bxd3 cxd3 14. O-O Ne4 15. Qb1 g5 16. Bg3 h5 17. Qxd3 h4 {1-0 Kamsky,G (2663)-Stoyanov,T (2446) Titled Tuesday intern op 21st Mar Late blitz 2023 (6)}) 12. Bc2 {[%emt 0:00:00]} Bxc2 {[%emt 0:00:00]} 13. Qxc2 {[%emt 0:01:00]} b5 {[%emt 0:04:30]} 14. O-O {[%emt 0:00:30]} Be7 {[%emt 0:00:30]} 15. Be5 {[%emt 0:00:30]} O-O {[%emt 0:00:00]} 16. Bxf6 {[%emt 0:00:00]} Bxf6 {[%emt 0:00:00]} 17. a3 {[%emt 0:01:00]} g5 {[%emt 0:01:30]} 18. h3 {[%emt 0:00:00]} Bg7 {[%emt 0:00:00]} 19. e4 {[%emt 0:00:00]} f5 {[%emt 0:00:00]} 20. exf5 {[%emt 0:00:00]} Rxf5 {[%emt 0:00:00]} 21. Rfe1 {[%emt 0:02:00]} Qd7 {[%emt 0:00:00]} 22. Nf1 {[%emt 0:00:30]} (22. Re3 $16) 22... Rcf8 {[%emt 0:00:00]} (22... Rxf3 $1 $11 23. gxf3 Qf7) 23. Ng3 {[%emt 0:00:30]} ({White should play} 23. N1h2 $1 $14) 23... Rxf3 $1 $11 {[%emt 0:00:00]} 24. gxf3 {[%emt 0:00:00]} Qf7 {[%emt 0:03:30]} 25. Re3 {[%emt 0:00:00]} e5 {[%emt 0:00:00]} 26. dxe5 {[%emt 0:01:30]} Nxe5 {[%emt 0:00:00]} 27. Qe2 {[%emt 0:00:00]} Nxf3+ {[%emt 0:00:00]} 28. Kg2 {[%emt 0:00:00]} Nh4+ {[%emt 0:00:00]} 29. Kf1 {[%emt 0:00:00]} d4 {[%emt 0:00:00]} (29... Ng6 $11 30. Rd1 Nf4) 30. Re7 $14 {[%emt 0:02:00]} Qd5 {[%emt 0:00:00]} 31. Qe4 {[%emt 0:00:00]} (31. Rxa7 $2 Qg2+ (31... dxc3 $2 32. Rxg7+ Kxg7 33. bxc3 $19) 32. Ke1 Nf3+ (32... dxc3 33. Rxg7+ Kxg7 34. Qe7+ Rf7 35. Nh5+ Kg8 36. Qe8+ Rf8 37. Nf6+ Kg7 38. Nh5+ Kh7 39. Qxf8 $11) (32... Qxh3 $2 33. Qe7 $18) (32... d3 $2 33. Rxg7+ Kxg7 34. Qe7+ Rf7 35. Qe5+ Kh7 36. Qe4+ Qxe4+ 37. Nxe4 $19) 33. Kd1 d3 $19 (33... dxc3 34. bxc3 Qg1+ 35. Qf1 $11) (33... Qxh3 34. Qe7)) 31... Qxe4 $1 {[%emt 0:00:00]} 32. Nxe4 {[%emt 0:00:00]} Rf3 {[%emt 0:00:00]} (32... Rf4 $14) 33. cxd4 {[%emt 0:01:30]} ({White should try} 33. Re1) 33... Bxd4 $16 {[%emt 0:00:00]} 34. Rd1 {[%emt 0:00:30]} Nf5 {[%emt 0:00:00] [#]} 35. Rd7 $1 {[%emt 0:00:30]} Bxb2 {[%emt 0:05:30]} 36. Rxa7 {[%emt 0:00:30]} Bd4 {[%emt 0:00:00] [#]} 37. Rd7 $1 {[%emt 0:00:30]} c3 {[%emt 0:00:00]} 38. Ke2 {[%emt 0:00:00]} ({Much weaker is} 38. R7xd4 $6 Nxd4 39. Nxc3 (39. Rxd4 c2 $15) 39... Rxc3 $11 (39... Rxh3 40. Rxd4 Rxc3 41. a4 $11)) 38... c2 {[%emt 0:01:30]} (38... Rxh3 $16 39. R7xd4 (39. R1xd4 Nxd4+ 40. Rxd4 c2 $18) 39... Nxd4+ 40. Rxd4 c2 41. Rd8+ Kh7) 39. Rc1 $18 {[%emt 0:00:00]} Rf4 {[%emt 0:00:00]} 40. Kd3 {[%emt 0:01:30]} Rf3+ {[%emt 0:00:00]} 41. Kxc2 {[%emt 0:29:59]} Bg7 $2 {[%emt 0:21:20]} (41... Rxa3 {was called for.} 42. Kd1 Ra8) 42. Kd2 {[%emt 0:01:01]} Nd4 $2 {[%emt 0:10:40]} (42... Nh4 43. Rcc7 Bf8) 43. Rc8+ $18 {[%emt 0:00:00]} Kh7 {[%emt 0:00:00]} 44. Rcc7 {[%emt 0:00:00]} Ne6 {[%emt 0:00:00]} 45. Ra7 {[%emt 0:01:30]} Rf5 {[%emt 0:00:00]} (45... Kg6 $142 46. Re7 Kf5 47. Ng3+ Ke5) 46. Ng3 {[%emt 0:00:00]} Rxf2+ {[%emt 0:00:00]} 47. Ke1 {[%emt 0:00:00]} Rf6 {[%emt 0:00:00]} 48. Nh5 {[%emt 0:00:00]} Rg6 {[%emt 0:00:00]} 49. Rd6 {[%emt 0:02:00]} Kg8 {[%emt 0:00:32]} 50. Nxg7 {[%emt 0:00:30]} Rxg7 {[%emt 0:00:07]} 51. Rxg7+ {[%emt 0:00:00]} Nxg7 {[%emt 0:00:07]} 52. Rxh6 {[%emt 0:00:00]} 1-0